[Event "Late-Titled-Tuesday-Blitz-February-13-2024"]
[Site "Chess.com"]
[Date "2024.02.13"]
[Round "8"]
[White "Championnn-9"]
[Black "CRObliterator"]
[Result "0-1"]
[WhiteElo "2509"]
[BlackElo "2393"]
[TimeControl "180+1"]
[EndTime "15:27:48 PST"]
[Termination "CRObliterator won by resignation"]

1. e4 {[%clk 0:03:00.9]} 1... d5 {[%clk 0:02:58.5]} 2. exd5 {[%clk 0:03:00.8]}
2... Qxd5 {[%clk 0:02:57.8]} 3. Qf3 {[%clk 0:02:59.4]} 3... Qxf3 {[%clk
0:02:55.3]} 4. Nxf3 {[%clk 0:03:00.3]} 4... Nf6 {[%clk 0:02:55.3]} 5. Nc3 {[%clk
0:02:59.6]} 5... a6 {[%clk 0:02:52]} 6. Bc4 {[%clk 0:02:55]} 6... b5 {[%clk
0:02:51.8]} 7. Bb3 {[%clk 0:02:55]} 7... Bb7 {[%clk 0:02:52.3]} 8. Ne5 {[%clk
0:02:54.1]} 8... e6 {[%clk 0:02:51.1]} 9. O-O {[%clk 0:02:52.9]} 9... c5 {[%clk
0:02:47.6]} 10. d3 {[%clk 0:02:53]} 10... Nbd7 {[%clk 0:02:45.8]} 11. Nxd7
{[%clk 0:02:50.4]} 11... Kxd7 {[%clk 0:02:44.2]} 12. a4 {[%clk 0:02:50.2]} 12...
b4 {[%clk 0:02:43.7]} 13. Ne2 {[%clk 0:02:50.2]} 13... Bd6 {[%clk 0:02:41.3]}
14. h3 {[%clk 0:02:46.4]} 14... Bd5 {[%clk 0:02:36.3]} 15. Bxd5 {[%clk
0:02:39.2]} 15... Nxd5 {[%clk 0:02:35.3]} 16. Bd2 {[%clk 0:02:33.7]} 16... Be5
{[%clk 0:02:26.5]} 17. c3 {[%clk 0:02:32.7]} 17... bxc3 {[%clk 0:02:24.6]} 18.
bxc3 {[%clk 0:02:32.7]} 18... Rab8 {[%clk 0:02:24.9]} 19. Rfb1 {[%clk
0:02:29.5]} 19... f5 {[%clk 0:02:17.8]} 20. f4 {[%clk 0:02:26.3]} 20... Bf6
{[%clk 0:02:13.8]} 21. Kf2 {[%clk 0:02:26.3]} 21... h6 {[%clk 0:02:05.9]} 22.
Kf3 {[%clk 0:02:15.5]} 22... g5 {[%clk 0:02:05.1]} 23. g3 {[%clk 0:02:13.4]}
23... gxf4 {[%clk 0:02:03.1]} 24. gxf4 {[%clk 0:02:13.5]} 24... Kc7 {[%clk
0:01:51.8]} 25. d4 {[%clk 0:02:03.2]} 25... cxd4 {[%clk 0:01:49.1]} 26. cxd4
{[%clk 0:02:02.6]} 26... Rxb1 {[%clk 0:01:45.4]} 27. Rxb1 {[%clk 0:02:02.4]}
27... Rb8 {[%clk 0:01:40.9]} 28. Ba5+ {[%clk 0:02:02.4]} 28... Kc8 {[%clk
0:01:41.2]} 29. Rc1+ {[%clk 0:01:56.6]} 29... Kd7 {[%clk 0:01:41.2]} 30. Nc3
{[%clk 0:01:19.9]} 30... Rb3 {[%clk 0:01:40.3]} 31. Kf2 {[%clk 0:01:05.6]} 31...
Nxc3 {[%clk 0:01:38.7]} 32. Bxc3 {[%clk 0:00:53.3]} 32... Rxc3 {[%clk
0:01:38.7]} 33. Rxc3 {[%clk 0:00:44.6]} 33... Bxd4+ {[%clk 0:01:38.3]} 34. Re3
{[%clk 0:00:45.4]} 34... e5 {[%clk 0:01:34.2]} 35. Kf3 {[%clk 0:00:43]} 35...
Bxe3 {[%clk 0:01:31.7]} 36. Kxe3 {[%clk 0:00:42.9]} 36... e4 {[%clk 0:01:32.3]}
37. Kd4 {[%clk 0:00:37.7]} 37... Kc6 {[%clk 0:01:31.1]} 38. Kc4 {[%clk
0:00:31.6]} 38... Kb6 {[%clk 0:01:25.6]} 39. Kb4 {[%clk 0:00:29.8]} 39... e3
{[%clk 0:01:25.1]} 40. Kc3 {[%clk 0:00:29.2]} 40... Ka5 {[%clk 0:01:25.1]} 41.
Kd3 {[%clk 0:00:29]} 41... Kxa4 {[%clk 0:01:25.5]} 42. Kxe3 {[%clk 0:00:28.9]}
42... Kb3 {[%clk 0:01:25.1]} 43. Kd4 {[%clk 0:00:29.5]} 43... a5 {[%clk
0:01:25]} 44. Ke5 {[%clk 0:00:30.4]} 44... a4 {[%clk 0:01:25.6]} 45. Kxf5 {[%clk
0:00:31.3]} 45... a3 {[%clk 0:01:26.4]} 46. Kg6 {[%clk 0:00:31.7]} 46... a2
{[%clk 0:01:27.3]} 47. Kxh6 {[%clk 0:00:30]} 47... a1=Q {[%clk 0:01:27.5]} 48.
Kg6 {[%clk 0:00:30.5]} 48... Qg1+ {[%clk 0:01:25.5]} 49. Kf6 {[%clk 0:00:28.1]}
49... Kc4 {[%clk 0:01:26.4]} 50. f5 {[%clk 0:00:27.9]} 50... Kd5 {[%clk
0:01:26.7]} 51. Kf7 {[%clk 0:00:28]} 51... Ke5 {[%clk 0:01:27]} 52. h4 {[%clk
0:00:26.4]} 52... Kxf5 {[%clk 0:01:26.6]} 53. h5 {[%clk 0:00:25.4]} 53... Qg5
{[%clk 0:01:26.5]} 54. Kf8 {[%clk 0:00:25]} 54... Kf6 {[%clk 0:01:25.3]} 55. Ke8
{[%clk 0:00:24.8]} 55... Ke6 {[%clk 0:01:23.7]} 56. Kf8 {[%clk 0:00:24.2]} 56...
Qh6+ {[%clk 0:01:21.1]} 57. Kg8 {[%clk 0:00:24.2]} 57... Qxh5 {[%clk 0:01:16.9]}
58. Kg7 {[%clk 0:00:23.6]} 58... Qf7+ {[%clk 0:01:15.9]} 59. Kh8 {[%clk
0:00:23.7]} 59... Qc7 {[%clk 0:01:15.8]} 60. Kg8 {[%clk 0:00:23.3]} 60... Kf6
{[%clk 0:01:16.1]} 0-1

[Event "Late-Titled-Tuesday-Blitz-February-13-2024"]
[Site "Chess.com"]
[Date "2024.02.13"]
[Round "8"]
[White "katharinareinecke"]
[Black "PushingpawnsNYC"]
[Result "0-1"]
[WhiteElo "1951"]
[BlackElo "2349"]
[TimeControl "180+1"]
[EndTime "15:27:51 PST"]
[Termination "PushingpawnsNYC won by resignation"]

1. e4 {[%clk 0:03:00.9]} 1... c5 {[%clk 0:00:17.3]} 2. Nf3 {[%clk 0:02:57.9]}
2... e6 {[%clk 0:00:17.5]} 3. g3 {[%clk 0:02:53.7]} 3... a6 {[%clk 0:00:17.6]}
4. Bg2 {[%clk 0:02:52.9]} 4... Qc7 {[%clk 0:00:18.4]} 5. O-O {[%clk 0:02:52.3]}
5... d6 {[%clk 0:00:19]} 6. c3 {[%clk 0:02:51.3]} 6... b5 {[%clk 0:00:18.5]} 7.
d4 {[%clk 0:02:51.2]} 7... Bb7 {[%clk 0:00:19.1]} 8. Re1 {[%clk 0:02:50.1]} 8...
Be7 {[%clk 0:00:19.4]} 9. Nbd2 {[%clk 0:02:43.7]} 9... Nd7 {[%clk 0:00:19.6]}
10. b3 {[%clk 0:02:43.3]} 10... Ngf6 {[%clk 0:00:19.6]} 11. Bb2 {[%clk
0:02:42.2]} 11... O-O {[%clk 0:00:19.8]} 12. Rc1 {[%clk 0:02:40.2]} 12... Rac8
{[%clk 0:00:19.3]} 13. c4 {[%clk 0:02:33.6]} 13... Qa5 {[%clk 0:00:18.7]} 14.
cxb5 {[%clk 0:02:27.8]} 14... axb5 {[%clk 0:00:18.5]} 15. a4 {[%clk 0:02:24.4]}
15... cxd4 {[%clk 0:00:17.4]} 16. Nxd4 {[%clk 0:02:13.9]} 16... bxa4 {[%clk
0:00:16.9]} 17. bxa4 {[%clk 0:02:13.1]} 17... Ne5 {[%clk 0:00:15.4]} 18. Qb3
{[%clk 0:01:27.9]} 18... Ba6 {[%clk 0:00:15.3]} 19. Nb5 {[%clk 0:01:21.4]} 19...
Qxd2 {[%clk 0:00:14.3]} 20. Rcd1 {[%clk 0:01:10.2]} 20... Qc2 {[%clk 0:00:13.2]}
21. Qxc2 {[%clk 0:01:03.6]} 21... Rxc2 {[%clk 0:00:13]} 22. Bxe5 {[%clk
0:01:03.6]} 22... dxe5 {[%clk 0:00:13]} 23. Rd7 {[%clk 0:01:01.6]} 23... Bc5
{[%clk 0:00:13]} 24. Rf1 {[%clk 0:00:56.2]} 24... Ng4 {[%clk 0:00:12.8]} 25. h3
{[%clk 0:00:48.9]} 25... Nxf2 {[%clk 0:00:11.5]} 26. Kh2 {[%clk 0:00:47.8]}
26... Nxe4 {[%clk 0:00:11.3]} 27. Rfd1 {[%clk 0:00:34.3]} 27... Nf6 {[%clk
0:00:10.9]} 28. Rd8 {[%clk 0:00:28.7]} 28... Bb7 {[%clk 0:00:10.8]} 29. Rxf8+
{[%clk 0:00:27.3]} 29... Kxf8 {[%clk 0:00:10.7]} 30. Rd8+ {[%clk 0:00:23.7]}
30... Ke7 {[%clk 0:00:11]} 31. Rb8 {[%clk 0:00:17.7]} 31... Bxg2 {[%clk
0:00:11]} 0-1

[Event "Late-Titled-Tuesday-Blitz-February-13-2024"]
[Site "Chess.com"]
[Date "2024.02.13"]
[Round "8"]
[White "ChessSwole"]
[Black "Kostukov_Alex"]
[Result "1-0"]
[WhiteElo "2673"]
[BlackElo "2319"]
[TimeControl "180+1"]
[EndTime "15:27:56 PST"]
[Termination "ChessSwole won by resignation"]

1. e4 {[%clk 0:03:00.9]} 1... c5 {[%clk 0:02:59.4]} 2. Nc3 {[%clk 0:02:59.8]}
2... g6 {[%clk 0:02:59.5]} 3. d4 {[%clk 0:02:57]} 3... cxd4 {[%clk 0:02:59]} 4.
Qxd4 {[%clk 0:02:57.7]} 4... Nf6 {[%clk 0:02:59.5]} 5. Nf3 {[%clk 0:02:57]} 5...
Nc6 {[%clk 0:02:59.5]} 6. Qa4 {[%clk 0:02:57.7]} 6... d6 {[%clk 0:02:55.8]} 7.
e5 {[%clk 0:02:57.8]} 7... dxe5 {[%clk 0:02:55.9]} 8. Nxe5 {[%clk 0:02:58.7]}
8... Bg7 {[%clk 0:02:56.2]} 9. Nxc6 {[%clk 0:02:56.4]} 9... bxc6 {[%clk
0:02:57.1]} 10. Be2 {[%clk 0:02:56]} 10... O-O {[%clk 0:02:56.2]} 11. O-O {[%clk
0:02:54]} 11... Qb6 {[%clk 0:02:55.5]} 12. Qa3 {[%clk 0:02:36.8]} 12... Bf5
{[%clk 0:02:37.7]} 13. Be3 {[%clk 0:02:35.5]} 13... Qc7 {[%clk 0:02:31.5]} 14.
Bf3 {[%clk 0:02:24.2]} 14... Ng4 {[%clk 0:02:15.6]} 15. Bxg4 {[%clk 0:02:22.1]}
15... Bxg4 {[%clk 0:02:16.5]} 16. Bc5 {[%clk 0:02:10.9]} 16... Rfe8 {[%clk
0:02:10.8]} 17. Rfe1 {[%clk 0:02:09.5]} 17... Bf5 {[%clk 0:02:02.2]} 18. Bxe7
{[%clk 0:02:02.4]} 18... Bxc2 {[%clk 0:01:55.7]} 19. Rac1 {[%clk 0:02:02.1]}
19... Bf5 {[%clk 0:01:53.8]} 20. Nb5 {[%clk 0:01:40.3]} 20... Qf4 {[%clk
0:01:46.3]} 21. g3 {[%clk 0:01:31.8]} 21... Qh6 {[%clk 0:01:42.8]} 22. Nc7
{[%clk 0:01:24.6]} 22... Rxe7 {[%clk 0:01:11.7]} 23. Qxe7 {[%clk 0:01:25.5]}
23... Rf8 {[%clk 0:01:07.6]} 24. Ne8 {[%clk 0:01:11.5]} 24... Bxb2 {[%clk
0:01:02]} 25. Rxc6 {[%clk 0:01:03]} 25... Qd2 {[%clk 0:00:57.6]} 26. Nf6+ {[%clk
0:00:46.2]} 26... Kg7 {[%clk 0:00:56.2]} 27. Ne8+ {[%clk 0:00:34.6]} 27... Kg8
{[%clk 0:00:56]} 28. Qe2 {[%clk 0:00:31.7]} 28... Qd7 {[%clk 0:00:52.5]} 29.
Qxb2 {[%clk 0:00:28.2]} 29... Rxe8 {[%clk 0:00:48.2]} 30. Rxe8+ {[%clk
0:00:29.1]} 30... Qxe8 {[%clk 0:00:48.6]} 31. Rc1 {[%clk 0:00:23.2]} 31... Qe4
{[%clk 0:00:38.7]} 32. Rd1 {[%clk 0:00:20.5]} 32... Qe8 {[%clk 0:00:32.7]} 33.
Qf6 {[%clk 0:00:19.6]} 33... Bd7 {[%clk 0:00:26.7]} 34. Qd6 {[%clk 0:00:18.2]}
34... Bg4 {[%clk 0:00:23.2]} 35. Qd8 {[%clk 0:00:18]} 35... Qxd8 {[%clk
0:00:22.1]} 36. Rxd8+ {[%clk 0:00:18.9]} 36... Kg7 {[%clk 0:00:22.6]} 37. Ra8
{[%clk 0:00:18.8]} 1-0

[Event "Late-Titled-Tuesday-Blitz-February-13-2024"]
[Site "Chess.com"]
[Date "2024.02.13"]
[Round "8"]
[White "Misterfox120"]
[Black "Rinqed222"]
[Result "1-0"]
[WhiteElo "2402"]
[BlackElo "2256"]
[TimeControl "180+1"]
[EndTime "15:27:57 PST"]
[Termination "Misterfox120 won by resignation"]

1. d4 {[%clk 0:03:00.9]} 1... Nf6 {[%clk 0:02:44.7]} 2. Bf4 {[%clk 0:03:00]}
2... g6 {[%clk 0:02:43.8]} 3. Nc3 {[%clk 0:02:59.5]} 3... d5 {[%clk 0:02:43.8]}
4. e3 {[%clk 0:02:58.9]} 4... Bg7 {[%clk 0:02:43.9]} 5. Nb5 {[%clk 0:02:58.8]}
5... Na6 {[%clk 0:02:39.3]} 6. Nc3 {[%clk 0:02:59.5]} 6... O-O {[%clk
0:02:34.4]} 7. Bxa6 {[%clk 0:02:58.6]} 7... bxa6 {[%clk 0:02:35.3]} 8. Be5
{[%clk 0:02:59.3]} 8... Rb8 {[%clk 0:02:33.4]} 9. b3 {[%clk 0:02:58]} 9... a5
{[%clk 0:02:16.7]} 10. Nge2 {[%clk 0:02:54.5]} 10... Ba6 {[%clk 0:02:15.1]} 11.
O-O {[%clk 0:02:45.9]} 11... Ne8 {[%clk 0:01:41.9]} 12. Bxg7 {[%clk 0:02:44.9]}
12... Kxg7 {[%clk 0:01:41.9]} 13. Na4 {[%clk 0:02:45.5]} 13... Nd6 {[%clk
0:01:37.5]} 14. Nc5 {[%clk 0:02:44.9]} 14... Bc8 {[%clk 0:01:37.5]} 15. Nf4
{[%clk 0:02:25.2]} 15... Ne4 {[%clk 0:01:30.6]} 16. Nfd3 {[%clk 0:02:21.9]}
16... Qd6 {[%clk 0:01:03.4]} 17. Nxe4 {[%clk 0:02:12.4]} 17... dxe4 {[%clk
0:01:04.3]} 18. Nc5 {[%clk 0:02:13]} 18... f5 {[%clk 0:01:01]} 19. Qd2 {[%clk
0:02:05]} 19... e5 {[%clk 0:00:59.8]} 20. Qxa5 {[%clk 0:01:59.6]} 20... exd4
{[%clk 0:00:48.3]} 21. Rad1 {[%clk 0:01:52.8]} 21... Qb6 {[%clk 0:00:45.2]} 22.
Qa3 {[%clk 0:01:34.3]} 22... dxe3 {[%clk 0:00:40.3]} 23. fxe3 {[%clk 0:01:20.7]}
23... f4 {[%clk 0:00:33.3]} 24. Rxf4 {[%clk 0:01:07.1]} 24... Rxf4 {[%clk
0:00:32.7]} 25. exf4 {[%clk 0:01:08]} 25... Bg4 {[%clk 0:00:30.7]} 26. Re1
{[%clk 0:00:49.3]} 26... Rd8 {[%clk 0:00:29.5]} 27. h3 {[%clk 0:00:47.8]} 27...
Rd1 {[%clk 0:00:26]} 28. Rxd1 {[%clk 0:00:46.2]} 28... Bxd1 {[%clk 0:00:26.9]}
29. Qb2+ {[%clk 0:00:46.5]} 29... Kf7 {[%clk 0:00:24.1]} 30. Qd4 {[%clk
0:00:46.1]} 30... Bxc2 {[%clk 0:00:21.5]} 31. Qc4+ {[%clk 0:00:46.2]} 31... Ke7
{[%clk 0:00:19]} 32. Qxc2 {[%clk 0:00:46.5]} 32... Kd6 {[%clk 0:00:19.6]} 33. b4
{[%clk 0:00:42.7]} 33... Qxb4 {[%clk 0:00:19.2]} 34. Nxe4+ {[%clk 0:00:42.9]}
34... Kd7 {[%clk 0:00:18.3]} 35. Qd3+ {[%clk 0:00:41.9]} 35... Ke6 {[%clk
0:00:17]} 36. Ng5+ {[%clk 0:00:40.7]} 36... Ke7 {[%clk 0:00:12.7]} 37. Qe4+
{[%clk 0:00:38.7]} 37... Qxe4 {[%clk 0:00:11.3]} 38. Nxe4 {[%clk 0:00:39.6]}
38... Ke6 {[%clk 0:00:11.9]} 39. Kf2 {[%clk 0:00:40.5]} 39... Kd5 {[%clk
0:00:11.6]} 40. Nf6+ {[%clk 0:00:40.6]} 40... Kc4 {[%clk 0:00:10.5]} 41. Nxh7
{[%clk 0:00:41.5]} 41... Kc3 {[%clk 0:00:11]} 42. g4 {[%clk 0:00:41.8]} 42...
Kb2 {[%clk 0:00:11.6]} 43. f5 {[%clk 0:00:42.2]} 43... Kxa2 {[%clk 0:00:12.1]}
44. f6 {[%clk 0:00:42.4]} 44... c6 {[%clk 0:00:13]} 45. f7 {[%clk 0:00:43.3]}
1-0

[Event "Late-Titled-Tuesday-Blitz-February-13-2024"]
[Site "Chess.com"]
[Date "2024.02.13"]
[Round "8"]
[White "ural58"]
[Black "Zampronha1971"]
[Result "1-0"]
[WhiteElo "2513"]
[BlackElo "2353"]
[TimeControl "180+1"]
[EndTime "15:27:59 PST"]
[Termination "ural58 won by checkmate"]

1. e4 {[%clk 0:03:00.9]} 1... c5 {[%clk 0:02:32.9]} 2. b3 {[%clk 0:03:00.1]}
2... d5 {[%clk 0:02:31.5]} 3. exd5 {[%clk 0:02:59.4]} 3... Qxd5 {[%clk
0:02:32.4]} 4. Nc3 {[%clk 0:02:59]} 4... Qd8 {[%clk 0:02:31.8]} 5. Nf3 {[%clk
0:02:54.8]} 5... Nc6 {[%clk 0:02:32.2]} 6. Bb5 {[%clk 0:02:54.1]} 6... Bd7
{[%clk 0:02:30.9]} 7. O-O {[%clk 0:02:48.6]} 7... e6 {[%clk 0:02:31.4]} 8. Re1
{[%clk 0:02:44.5]} 8... Nf6 {[%clk 0:02:31.7]} 9. Ng5 {[%clk 0:02:34.3]} 9...
Be7 {[%clk 0:02:31]} 10. Qf3 {[%clk 0:02:31.4]} 10... O-O {[%clk 0:02:29.6]} 11.
Qh3 {[%clk 0:02:24.3]} 11... Nd4 {[%clk 0:02:28.5]} 12. Bd3 {[%clk 0:02:22]}
12... h6 {[%clk 0:02:26.9]} 13. Nge4 {[%clk 0:02:21.1]} 13... Nxe4 {[%clk
0:02:25.9]} 14. Bxe4 {[%clk 0:02:18]} 14... e5 {[%clk 0:02:22.9]} 15. Qd3 {[%clk
0:02:05.6]} 15... Bc6 {[%clk 0:02:13.4]} 16. Bxc6 {[%clk 0:02:04.5]} 16... Nxc6
{[%clk 0:02:12.5]} 17. Nd5 {[%clk 0:01:44.8]} 17... Nb4 {[%clk 0:02:12]} 18.
Nxb4 {[%clk 0:01:43.9]} 18... cxb4 {[%clk 0:02:10.7]} 19. Qxd8 {[%clk
0:01:42.7]} 19... Rfxd8 {[%clk 0:02:10.1]} 20. d3 {[%clk 0:01:31.7]} 20... f6
{[%clk 0:02:00.1]} 21. a3 {[%clk 0:01:29.6]} 21... Rdc8 {[%clk 0:01:20.6]} 22.
Re2 {[%clk 0:01:28.1]} 22... Rc6 {[%clk 0:01:11.4]} 23. axb4 {[%clk 0:01:26.6]}
23... Bxb4 {[%clk 0:01:08.9]} 24. Kf1 {[%clk 0:01:26.3]} 24... a6 {[%clk
0:01:06.3]} 25. Ba3 {[%clk 0:01:21.5]} 25... Bc3 {[%clk 0:01:02.3]} 26. Ra2
{[%clk 0:01:20.6]} 26... Rac8 {[%clk 0:01:02.7]} 27. Bc1 {[%clk 0:01:10]} 27...
Kf7 {[%clk 0:01:02.5]} 28. Bd2 {[%clk 0:01:08.1]} 28... Bd4 {[%clk 0:00:54.6]}
29. c4 {[%clk 0:01:06.8]} 29... b5 {[%clk 0:00:51]} 30. Be3 {[%clk 0:01:04.1]}
30... bxc4 {[%clk 0:00:45.3]} 31. dxc4 {[%clk 0:01:00.7]} 31... Bxe3 {[%clk
0:00:39.2]} 32. Rxe3 {[%clk 0:00:59.7]} 32... Rb8 {[%clk 0:00:37.6]} 33. Ke2
{[%clk 0:00:58.5]} 33... Rd8 {[%clk 0:00:23.8]} 34. Rd3 {[%clk 0:00:57.6]} 34...
Rxd3 {[%clk 0:00:21.4]} 35. Kxd3 {[%clk 0:00:58.1]} 35... Ke6 {[%clk 0:00:22.1]}
36. b4 {[%clk 0:00:57]} 36... f5 {[%clk 0:00:19.7]} 37. c5 {[%clk 0:00:55.8]}
37... Kd5 {[%clk 0:00:17.4]} 38. Kc3 {[%clk 0:00:55.9]} 38... Ke4 {[%clk
0:00:16.5]} 39. Re2+ {[%clk 0:00:53.6]} 39... Kf4 {[%clk 0:00:14.6]} 40. Kc4
{[%clk 0:00:52.6]} 40... e4 {[%clk 0:00:13.5]} 41. Kd5 {[%clk 0:00:50.6]} 41...
Rc8 {[%clk 0:00:13.5]} 42. Re3 {[%clk 0:00:50.3]} 42... g5 {[%clk 0:00:12.5]}
43. h3 {[%clk 0:00:47.9]} 43... Rb8 {[%clk 0:00:13.1]} 44. g3# {[%clk
0:00:47.2]} 1-0

[Event "Late-Titled-Tuesday-Blitz-February-13-2024"]
[Site "Chess.com"]
[Date "2024.02.13"]
[Round "8"]
[White "cukricek"]
[Black "Lucas_Tomiello"]
[Result "1-0"]
[WhiteElo "2467"]
[BlackElo "2657"]
[TimeControl "180+1"]
[EndTime "15:28:00 PST"]
[Termination "cukricek won by resignation"]

1. g3 {[%clk 0:03:00.9]} 1... d5 {[%clk 0:02:59.9]} 2. Nf3 {[%clk 0:03:00.5]}
2... Nf6 {[%clk 0:03:00.6]} 3. Bg2 {[%clk 0:03:00.8]} 3... c5 {[%clk 0:03:00.9]}
4. O-O {[%clk 0:03:00.7]} 4... e6 {[%clk 0:03:01.6]} 5. d4 {[%clk 0:03:00.5]}
5... c4 {[%clk 0:03:01.7]} 6. b3 {[%clk 0:02:57.3]} 6... cxb3 {[%clk 0:03:02.1]}
7. axb3 {[%clk 0:02:57.4]} 7... Nc6 {[%clk 0:03:02.6]} 8. c4 {[%clk 0:02:57.7]}
8... Be7 {[%clk 0:03:02.3]} 9. Nc3 {[%clk 0:02:56.1]} 9... O-O {[%clk
0:03:02.5]} 10. Bg5 {[%clk 0:02:54.7]} 10... h6 {[%clk 0:03:00.2]} 11. Bxf6
{[%clk 0:02:54.5]} 11... Bxf6 {[%clk 0:03:01.1]} 12. e3 {[%clk 0:02:54.8]} 12...
dxc4 {[%clk 0:02:59.6]} 13. bxc4 {[%clk 0:02:54.6]} 13... e5 {[%clk 0:03:00.2]}
14. d5 {[%clk 0:02:46.8]} 14... Na5 {[%clk 0:02:45.5]} 15. c5 {[%clk 0:02:37]}
15... e4 {[%clk 0:02:10.9]} 16. Nd4 {[%clk 0:02:35]} 16... Bxd4 {[%clk
0:02:10.9]} 17. exd4 {[%clk 0:02:32.8]} 17... f5 {[%clk 0:02:08.1]} 18. Qa4
{[%clk 0:02:09.9]} 18... b6 {[%clk 0:02:05.4]} 19. c6 {[%clk 0:02:03.3]} 19...
Ba6 {[%clk 0:01:46.7]} 20. Rfc1 {[%clk 0:01:58.8]} 20... Bc4 {[%clk 0:01:31.5]}
21. Bf1 {[%clk 0:01:36.2]} 21... Bb3 {[%clk 0:01:02.5]} 22. Qb4 {[%clk
0:01:33.5]} 22... Bxd5 {[%clk 0:00:37.2]} 23. c7 {[%clk 0:01:28.8]} 23... Qd7
{[%clk 0:00:33.2]} 24. Nxd5 {[%clk 0:01:11.5]} 24... Qxd5 {[%clk 0:00:34.1]} 25.
Ba6 {[%clk 0:01:09.3]} 25... Kh7 {[%clk 0:00:20.5]} 26. c8=Q {[%clk 0:01:02.7]}
26... Raxc8 {[%clk 0:00:20.5]} 27. Rxc8 {[%clk 0:00:58.1]} 27... Rxc8 {[%clk
0:00:17.4]} 28. Bxc8 {[%clk 0:00:59]} 28... Nc6 {[%clk 0:00:18.3]} 29. Qf8
{[%clk 0:00:45.8]} 29... Nxd4 {[%clk 0:00:16.8]} 30. Rxa7 {[%clk 0:00:31]} 30...
Ne2+ {[%clk 0:00:07.4]} 31. Kg2 {[%clk 0:00:30.7]} 31... e3+ {[%clk 0:00:07.2]}
32. f3 {[%clk 0:00:27.9]} 32... Qe5 {[%clk 0:00:02.3]} 33. Bxf5+ {[%clk
0:00:23.7]} 1-0

[Event "Late-Titled-Tuesday-Blitz-February-13-2024"]
[Site "Chess.com"]
[Date "2024.02.13"]
[Round "8"]
[White "AsaHoffmann"]
[Black "Dinamo3"]
[Result "0-1"]
[WhiteElo "2425"]
[BlackElo "2526"]
[TimeControl "180+1"]
[EndTime "15:28:03 PST"]
[Termination "Dinamo3 won by resignation"]

1. d4 {[%clk 0:02:58.1]} 1... Nf6 {[%clk 0:02:59.9]} 2. Bg5 {[%clk 0:02:52.9]}
2... d5 {[%clk 0:02:58.6]} 3. Nd2 {[%clk 0:02:52.5]} 3... c5 {[%clk 0:02:56.6]}
4. e3 {[%clk 0:02:52.1]} 4... Qb6 {[%clk 0:02:52.8]} 5. Ngf3 {[%clk 0:02:45.5]}
5... Nc6 {[%clk 0:02:39.3]} 6. c3 {[%clk 0:02:44.9]} 6... Qxb2 {[%clk
0:02:36.2]} 7. dxc5 {[%clk 0:02:36.4]} 7... e5 {[%clk 0:02:31.8]} 8. Rb1 {[%clk
0:02:24.3]} 8... Qxc3 {[%clk 0:02:30.5]} 9. Bb5 {[%clk 0:02:23]} 9... e4 {[%clk
0:02:00.6]} 10. Bxf6 {[%clk 0:02:19.7]} 10... Qxf6 {[%clk 0:01:59.3]} 11. Nd4
{[%clk 0:02:19.4]} 11... Bxc5 {[%clk 0:01:56.4]} 12. Qa4 {[%clk 0:02:15.1]}
12... Bxd4 {[%clk 0:01:54.9]} 13. Bxc6+ {[%clk 0:02:10.5]} 13... bxc6 {[%clk
0:01:44.6]} 14. exd4 {[%clk 0:02:07]} 14... O-O {[%clk 0:01:44.4]} 15. O-O
{[%clk 0:02:06.3]} 15... Qg5 {[%clk 0:01:40.5]} 16. f4 {[%clk 0:01:56.6]} 16...
Qf6 {[%clk 0:01:31]} 17. Rbc1 {[%clk 0:01:53.3]} 17... Bd7 {[%clk 0:01:30.9]}
18. Nb3 {[%clk 0:01:51.6]} 18... e3 {[%clk 0:01:27.2]} 19. Rce1 {[%clk
0:01:44.3]} 19... Rfe8 {[%clk 0:01:27]} 20. Nc5 {[%clk 0:01:40.8]} 20... Bf5
{[%clk 0:01:26.5]} 21. h3 {[%clk 0:01:36.1]} 21... h5 {[%clk 0:01:26.1]} 22. Rf3
{[%clk 0:01:35]} 22... e2 {[%clk 0:00:51.5]} 23. Rf2 {[%clk 0:01:34.4]} 23...
Qd6 {[%clk 0:00:43.9]} 24. Qa3 {[%clk 0:01:22.7]} 24... Re7 {[%clk 0:00:41.2]}
25. Qg3 {[%clk 0:01:19.4]} 25... Rae8 {[%clk 0:00:39.4]} 26. Qf3 {[%clk
0:01:14.9]} 26... h4 {[%clk 0:00:18.7]} 27. Rfxe2 {[%clk 0:01:14.6]} 27... Rxe2
{[%clk 0:00:18.7]} 28. Rxe2 {[%clk 0:01:14.8]} 28... Rxe2 {[%clk 0:00:19.5]} 29.
Qxe2 {[%clk 0:01:15]} 29... Qxf4 {[%clk 0:00:20.2]} 30. Qf2 {[%clk 0:01:13.7]}
30... Qc1+ {[%clk 0:00:16.3]} 31. Kh2 {[%clk 0:01:13.2]} 31... Qg5 {[%clk
0:00:17]} 32. Qf3 {[%clk 0:01:04.3]} 32... g6 {[%clk 0:00:14.8]} 33. a4 {[%clk
0:01:01.8]} 33... Qd2 {[%clk 0:00:13.9]} 34. Nb3 {[%clk 0:00:58.5]} 34... Qc2
{[%clk 0:00:08.4]} 35. a5 {[%clk 0:00:56.8]} 35... Be4 {[%clk 0:00:08.6]} 36.
Qf1 {[%clk 0:00:45.1]} 36... Qxb3 {[%clk 0:00:08.5]} 37. Qf2 {[%clk 0:00:44.2]}
37... Qg3+ {[%clk 0:00:08.4]} 38. Qxg3 {[%clk 0:00:43.8]} 38... hxg3+ {[%clk
0:00:09.3]} 39. Kxg3 {[%clk 0:00:44]} 39... Kg7 {[%clk 0:00:10.1]} 40. Kf4
{[%clk 0:00:44]} 40... f6 {[%clk 0:00:10]} 41. g4 {[%clk 0:00:44.1]} 41... g5+
{[%clk 0:00:10.5]} 42. Ke3 {[%clk 0:00:43.9]} 42... Kg6 {[%clk 0:00:11]} 43. Kf2
{[%clk 0:00:43.4]} 43... f5 {[%clk 0:00:11.6]} 44. Kg3 {[%clk 0:00:42.9]} 44...
f4+ {[%clk 0:00:11.7]} 45. Kf2 {[%clk 0:00:43]} 45... Kf6 {[%clk 0:00:12]} 0-1